bitfinex-derivatives/quotes_BTCF0:USTF0_20241210
["timestamp","ask_amount","ask_price","bid_price","bid_amount"]
[1733863361686,0.3608,96441.0,96429.0,0.058]
[1733863362388,0.051826,96433.0,96429.0,0.058]
[1733863362591,0.001,96435.0,96429.0,0.058]
[1733863362592,0.051827,96430.0,96429.0,0.058]
[1733863362784,0.051827,96430.0,96429.0,0.06]
[1733863364992,0.051827,96430.0,96429.0,0.059]
[1733863365293,0.051827,96430.0,96429.0,0.4208]
[1733863369489,0.051827,96430.0,96429.0,0.3628]
[1733863370202,0.05191479,96430.0,96429.0,0.3628]
[1733863374296,0.05191479,96430.0,96429.0,0.002]
[1733863375696,0.05191479,96430.0,96429.0,0.001]
[1733863376088,0.05191479,96430.0,96414.0,0.051836]
[1733863376089,0.051834,96418.0,96414.0,0.051836]
[1733863376400,0.10311397,96424.0,96414.0,0.051836]
[1733863376598,0.051834,96417.0,96414.0,0.051836]
[1733863378705,0.052834,96417.0,96414.0,0.058836]
[1733863378900,0.052834,96417.0,96414.0,0.061836]
[1733863379098,0.001,96417.0,96414.0,0.19363648]
[1733863379404,0.001,96417.0,96416.0,0.051835]
[1733863379901,0.001,96417.0,96416.0,0.29668364]
[1733863380095,0.001,96417.0,96416.0,0.051835]
[1733863380502,0.001,96417.0,96416.0,0.054835]
[1733863381297,0.05183,96426.0,96425.0,0.05183]
[1733863381500,0.05183,96426.0,96421.0,0.54506397]
[1733863381705,0.051832,96422.0,96421.0,0.3608]
[1733863382100,0.051832,96422.0,96421.0,0.412632]
[1733863382306,8.779e-05,96430.0,96421.0,0.3608]
[1733863382503,0.051829,96427.0,96426.0,0.051828]
[1733863383195,0.051832,96422.0,96421.0,0.00472]
[1733863383394,0.051832,96422.0,96421.0,0.004]
[1733863383602,0.051832,96422.0,96421.0,0.055832]
[1733863384017,0.051829,96426.0,96425.0,0.001]
[1733863384908,0.051829,96426.0,96423.0,0.051831]
[1733863385710,0.051829,96426.0,96425.0,0.002]
[1733863386305,0.06078779,96430.0,96424.0,0.05183]
[1733863386306,0.05183,96425.0,96424.0,0.05183]
[1733863387618,0.05183,96425.0,96424.0,0.05283]
[1733863388014,0.05183,96425.0,96424.0,0.001]
[1733863388617,0.06002643,96425.0,96424.0,0.003]
[1733863389011,0.05183,96425.0,96424.0,0.05483]
[1733863389212,0.05183,96425.0,96424.0,0.003]
[1733863389421,0.12400043,96426.0,96424.0,0.003]
[1733863389606,0.05183,96425.0,96424.0,0.003]
[1733863390215,0.17583043,96425.0,96424.0,0.003]
[1733863390615,0.05183,96425.0,96424.0,0.003]
[1733863393722,0.05183,96425.0,96424.0,0.3638]
[1733863393923,0.17609908,96425.0,96424.0,0.3638]
[1733863394424,0.00832574,96430.0,96429.0,0.051828]
[1733863394630,8.779e-05,96430.0,96429.0,0.051828]
[1733863394825,0.12426838,96443.0,96429.0,0.41497803]
[1733863395127,0.00836985,96477.0,96442.0,0.3608]
[1733863395427,0.10311397,96480.0,96469.0,0.18416122]
[1733863395631,0.051804,96474.0,96473.0,0.051804]
[1733863395832,0.10311397,96480.0,96468.0,0.18416122]
[1733863396024,0.11128908,96490.0,96476.0,0.3608]
[1733863396531,0.051798,96485.0,96482.0,0.051799]
[1733863396828,0.051798,96484.0,96482.0,0.051799]
[1733863397526,0.3608,96483.0,96471.0,0.23596622]
[1733863397827,0.10311397,96481.0,96465.0,0.3608]
[1733863398620,0.10311397,96481.0,96470.0,0.051806]
[1733863398621,0.051804,96474.0,96470.0,0.051806]
[1733863398822,0.051805,96471.0,96465.0,0.3608]
[1733863399129,0.051803,96476.0,96465.0,0.7216]
[1733863399328,0.051803,96476.0,96475.0,0.3608]
[1733863400321,0.051803,96476.0,96471.0,0.051805]
[1733863400322,0.051804,96473.0,96471.0,0.051805]
[1733863400829,0.051804,96473.0,96465.0,0.3648]
[1733863401029,0.051804,96473.0,96471.0,0.001]
[1733863401533,0.051805,96472.0,96471.0,0.001]
[1733863401732,0.051805,96471.0,96466.0,0.051808]
[1733863402244,0.01020458,96476.0,96470.0,0.051805]
[1733863402430,0.01020458,96476.0,96465.0,0.3608]
[1733863402630,0.051805,96472.0,96466.0,0.051808]
[1733863402830,0.051805,96472.0,96467.0,0.051807]
[1733863404231,0.051805,96472.0,96468.0,0.051807]
[1733863406435,0.0576,96480.0,96468.0,0.001]
[1733863406629,0.057,96482.0,96481.0,0.0518]
[1733863406835,0.057,96482.0,96479.0,0.051801]
[1733863407033,0.057,96482.0,96480.0,0.0518]
[1733863407230,0.057,96482.0,96481.0,0.0518]
[1733863407439,0.057,96482.0,96474.0,0.7216]
[1733863407440,0.051796,96489.0,96485.0,0.051797]
[1733863407640,0.051797,96486.0,96485.0,0.412597]
[1733863409341,0.051797,96486.0,96485.0,0.3608]
[1733863409850,0.053797,96486.0,96485.0,0.3608]
[1733863410049,0.056797,96486.0,96485.0,0.3608]
[1733863410544,0.005,96486.0,96485.0,0.412598]
[1733863411142,0.003,96486.0,96485.0,0.412598]
[1733863411448,0.005,96486.0,96485.0,0.412598]
[1733863411844,0.005,96486.0,96485.0,0.42082332]
[1733863413138,0.002,96486.0,96485.0,0.42082332]
[1733863413342,0.005,96486.0,96485.0,0.42082332]
[1733863414845,0.005,96486.0,96485.0,0.412598]
[1733863415037,0.056797,96486.0,96485.0,0.3608]
[1733863415246,0.056797,96486.0,96485.0,0.412598]
[1733863417453,0.056797,96486.0,96485.0,0.3608]
[1733863418453,0.051798,96484.0,96483.0,0.051799]
[1733863418654,0.005,96486.0,96474.0,0.3608]
[1733863418856,0.051803,96475.0,96474.0,0.3608]
[1733863420142,0.0584,96483.0,96478.0,0.051801]
[1733863420351,0.0584,96483.0,96474.0,0.3618]
[1733863420352,0.110199,96483.0,96482.0,0.3608]
[1733863420743,0.110199,96483.0,96474.0,0.3636]
[1733863420943,0.051803,96475.0,96474.0,0.3636]
[1733863421149,0.051803,96475.0,96474.0,0.3628]
[1733863421349,0.051803,96475.0,96474.0,0.3618]
[1733863421860,0.051803,96475.0,96474.0,0.3608]
[1733863422055,0.051803,96475.0,96474.0,0.3618]
[1733863422652,0.053803,96475.0,96474.0,0.3608]
[1733863423058,0.054803,96475.0,96474.0,0.3608]
[1733863423647,0.06293053,96475.0,96474.0,0.3608]
[1733863423951,0.051807,96467.0,96465.0,0.05336285]
[1733863424150,0.09248101,96474.0,96465.0,0.05336285]
[1733863424347,0.1162415,96475.0,96465.0,0.00155485]
[1733863424348,0.051808,96466.0,96465.0,0.00155485]
[1733863425061,0.14428901,96466.0,96465.0,0.00155485]
[1733863425948,0.412608,96466.0,96465.0,0.00155485]
[1733863426149,0.412608,96466.0,96448.0,0.24554829]
[1733863426150,0.051811,96460.0,96445.0,0.18416122]
[1733863426347,0.05182,96443.0,96440.0,0.36152]
[1733863426558,0.051821,96441.0,96440.0,0.3608]
[1733863427155,0.051821,96441.0,96429.0,0.36152]
[1733863427346,0.10311397,96439.0,96429.0,0.36152]
[1733863427551,0.051827,96431.0,96429.0,0.36152]
[1733863427847,0.001,96443.0,96430.0,0.3608]
[1733863428049,0.09301167,96448.0,96440.0,0.003]
[1733863428258,0.10311397,96450.0,96441.0,0.0623]
[1733863428453,0.051815,96453.0,96449.0,0.3608]
[1733863429252,0.06571296,96459.0,96449.0,0.3608]
[1733863429656,0.051816,96452.0,96449.0,0.3608]
[1733863430253,0.051816,96452.0,96449.0,0.3638]
[1733863430453,0.051816,96451.0,96449.0,0.3638]
[1733863431054,0.051816,96451.0,96449.0,0.3648]
[1733863431755,0.051816,96451.0,96449.0,0.3638]
[1733863432462,0.06571296,96459.0,96449.0,0.3638]
[1733863432764,0.00155565,96461.0,96458.0,0.412612]
[1733863432960,0.05336665,96461.0,96458.0,0.412612]
[1733863433351,0.051811,96460.0,96458.0,0.412612]
[1733863434961,0.002,96460.0,96458.0,0.3608]
[1733863435264,0.051812,96459.0,96458.0,0.3608]
[1733863436559,0.052811,96460.0,96458.0,0.412612]
[1733863436962,0.051811,96460.0,96458.0,0.412612]
[1733863437165,0.00155565,96461.0,96460.0,0.051811]
[1733863437359,0.05336665,96461.0,96458.0,0.412612]
[1733863437663,0.051811,96460.0,96458.0,0.412612]
[1733863438267,0.051811,96460.0,96458.0,0.415612]
[1733863438665,0.00155565,96461.0,96460.0,0.051811]
[1733863438859,0.05336665,96461.0,96460.0,0.051811]
[1733863440066,0.00155565,96461.0,96460.0,0.051811]
[1733863440464,0.05336665,96461.0,96460.0,0.051811]
[1733863441467,0.00155565,96461.0,96460.0,0.052811]
[1733863441658,0.05336665,96461.0,96460.0,0.002]
[1733863442267,0.05336665,96461.0,96460.0,0.003]
[1733863443469,0.05336665,96461.0,96460.0,0.001]
[1733863443774,0.05336665,96461.0,96460.0,0.002]
[1733863444069,0.051815,96453.0,96449.0,0.051817]
[1733863444469,0.051819,96446.0,96444.0,0.051819]
[1733863444666,0.10311397,96460.0,96441.0,0.07075748]
[1733863444667,0.10311397,96460.0,96446.0,0.051818]
[1733863444861,0.10311397,96456.0,96440.0,0.3608]
[1733863445064,0.051821,96441.0,96440.0,0.3608]
[1733863446758,0.10311397,96450.0,96435.0,0.062]
[1733863447070,0.051818,96447.0,96446.0,0.002]
[1733863447468,0.051827,96431.0,96425.0,0.05183]
[1733863447669,0.051827,96431.0,96421.0,0.24606122]
[1733863447874,0.05183,96425.0,96419.0,0.00072]
[1733863448370,0.05183,96425.0,96416.0,0.3608]
[1733863448571,0.051834,96417.0,96416.0,0.3608]
[1733863449776,0.05184,96406.0,96405.0,0.0619]
[1733863450261,0.09296955,96417.0,96405.0,0.0619]
[1733863450462,0.09296955,96419.0,96405.0,0.0619]
[1733863450667,0.05184,96407.0,96405.0,0.0619]
[1733863451168,0.002,96406.0,96405.0,0.0759]
[1733863451769,0.001,96406.0,96405.0,0.0759]
[1733863452461,0.05284,96406.0,96405.0,0.0759]
[1733863452970,0.05284,96406.0,96405.0,0.014]
[1733863453474,0.05384,96406.0,96405.0,0.014]
[1733863453676,0.05284,96406.0,96405.0,0.014]
[1733863454272,0.05284,96406.0,96405.0,0.009]
[1733863454568,0.05384,96406.0,96405.0,0.014]
[1733863454777,0.41464,96406.0,96405.0,0.014]
[1733863454975,0.41464,96406.0,96400.0,0.1]
[1733863454976,0.051843,96401.0,96400.0,0.1]
[1733863455274,0.051855,96379.0,96369.0,0.17956]
[1733863455472,0.051848,96391.0,96369.0,0.1277]
[1733863455663,0.051854,96380.0,96375.0,0.051857]
[1733863455863,0.051854,96380.0,96370.0,0.051859]
[1733863456062,0.00010967,96379.0,96370.0,0.051859]
[1733863456561,0.00010967,96379.0,96368.0,0.00873892]
[1733863456761,0.00010967,96379.0,96371.0,0.051859]
[1733863456966,0.00010967,96379.0,96368.0,0.00873892]
[1733863456967,0.00010967,96379.0,96373.0,0.051858]
[1733863457191,0.00010967,96379.0,96368.0,0.00873892]
[1733863457475,0.05196467,96379.0,96368.0,0.051861]
[1733863457680,0.05296467,96379.0,96378.0,0.00955627]
[1733863457876,0.05396467,96379.0,96378.0,0.01055627]
[1733863458076,0.00210967,96379.0,96378.0,0.06241127]
[1733863458772,0.00210967,96379.0,96378.0,0.01055627]
[1733863460872,0.00210967,96379.0,96378.0,0.06241127]
[1733863462278,0.05396467,96379.0,96378.0,0.06241127]
[1733863462777,0.00210967,96379.0,96378.0,0.06241127]
[1733863462975,0.10311397,96400.0,96391.0,0.051848]
[1733863462976,0.051848,96392.0,96391.0,0.051848]
[1733863463178,0.35708656,96395.0,96391.0,0.051848]
[1733863463179,0.34844,96395.0,96391.0,0.051848]
[1733863463375,0.34844,96395.0,96394.0,0.051847]
[1733863463684,0.051846,96395.0,96394.0,0.051847]
[1733863463981,0.00155683,96403.0,96402.0,0.051842]
[1733863466878,0.0637,96419.0,96402.0,0.3608]
[1733863467065,0.00884856,96427.0,96418.0,0.3608]
[1733863467270,0.051831,96423.0,96422.0,0.051831]
[1733863468774,0.472406,96430.0,96428.0,0.051828]
[1733863468775,0.051828,96429.0,96428.0,0.051828]
[1733863469174,0.051831,96424.0,96423.0,0.051831]
[1733863470269,0.005,96427.0,96426.0,0.051829]
[1733863470873,0.3608,96430.0,96418.0,0.36939044]
[1733863471173,0.3608,96430.0,96422.0,0.053832]
[1733863471174,0.007,96423.0,96422.0,0.053832]
[1733863471577,0.051828,96429.0,96428.0,0.051828]
[1733863472081,0.05183,96426.0,96425.0,0.051829]
[1733863472476,0.412628,96430.0,96429.0,0.051828]
[1733863473688,0.3608,96430.0,96429.0,0.051828]
[1733863474283,0.001,96430.0,96426.0,0.3608]
[1733863474480,0.001,96430.0,96429.0,0.051828]
[1733863474677,0.002,96430.0,96429.0,0.051828]
[1733863475085,0.00155602,96443.0,96442.0,0.051821]
[1733863477686,0.00555602,96443.0,96442.0,0.051821]
[1733863478383,0.01255602,96443.0,96442.0,0.052821]
[1733863482280,0.06437602,96443.0,96442.0,0.001]
[1733863482483,0.051834,96419.0,96418.0,0.051833]
[1733863483682,0.0613,96431.0,96416.0,0.3608]
[1733863483883,0.0613,96431.0,96430.0,0.051827]
[1733863484187,0.0613,96431.0,96418.0,0.002]
[1733863484388,0.10311397,96428.0,96423.0,0.051831]
[1733863484589,0.05183,96425.0,96423.0,0.051831]
[1733863484889,0.05183,96424.0,96423.0,0.051831]
[1733863485092,0.051833,96420.0,96419.0,0.051833]
[1733863485592,0.051833,96420.0,96418.0,0.006]
[1733863485593,0.05183,96426.0,96418.0,0.006]
[1733863485890,0.051832,96422.0,96417.0,0.051834]
[1733863486090,0.051833,96420.0,96419.0,0.051833]
[1733863487391,0.051833,96420.0,96419.0,0.001]
[1733863487791,0.05183,96425.0,96422.0,0.051831]
[1733863487993,0.113127,96431.0,96419.0,0.001]
[1733863488185,0.051828,96429.0,96424.0,0.05183]
[1733863488388,0.051829,96427.0,96424.0,0.05183]
[1733863488690,0.113127,96431.0,96430.0,0.051827]
[1733863488894,0.113127,96431.0,96425.0,0.05183]
[1733863488895,0.051829,96428.0,96425.0,0.05183]
[1733863489205,0.001,96429.0,96416.0,0.3608]
[1733863489386,0.05183,96425.0,96419.0,0.051833]
[1733863489692,0.05183,96425.0,96420.0,0.051833]
[1733863489995,0.10311397,96430.0,96420.0,0.051833]
[1733863489996,0.051832,96422.0,96420.0,0.051833]
[1733863490494,0.051832,96421.0,96420.0,0.051833]
[1733863490997,0.051833,96420.0,96419.0,0.002]
[1733863491593,0.3608,96429.0,96419.0,0.002]
[1733863491789,0.051831,96424.0,96423.0,0.05183]
[1733863495895,0.0613,96431.0,96428.0,0.051827]
[1733863495896,0.051828,96429.0,96428.0,0.051827]
[1733863496095,0.051828,96429.0,96428.0,0.412627]
[1733863496392,0.051828,96429.0,96428.0,0.3608]
[1733863497094,0.051828,96429.0,96425.0,0.05183]
[1733863497095,0.051829,96426.0,96425.0,0.05183]
[1733863498389,0.051832,96421.0,96420.0,0.36156]
[1733863498592,0.051832,96421.0,96420.0,0.412633]
[1733863499195,0.051832,96421.0,96420.0,0.3608]
[1733863499792,0.051832,96421.0,96420.0,0.413633]
[1733863500196,0.051832,96421.0,96420.0,0.001]
[1733863500699,0.051832,96421.0,96408.0,0.051839]
[1733863500700,0.12368499,96421.0,96404.0,0.3608]
[1733863501000,0.051835,96416.0,96414.0,0.051835]
[1733863501402,0.051835,96416.0,96406.0,0.05184]
[1733863501697,0.051835,96416.0,96415.0,0.3608]
[1733863502199,0.09305737,96431.0,96415.0,0.3608]
[1733863502402,0.00887806,96436.0,96430.0,0.3608]
[1733863502595,0.00155598,96441.0,96435.0,0.051825]
[1733863502793,0.00155598,96441.0,96440.0,0.412622]
[1733863503001,0.00052001,96445.0,96440.0,0.412622]
[1733863503192,0.00052001,96445.0,96444.0,0.05182]
[1733863503801,0.051818,96447.0,96446.0,0.051819]
[1733863506304,0.065818,96447.0,96446.0,0.001]
[1733863506503,0.426618,96447.0,96446.0,0.001]
[1733863509115,0.051833,96420.0,96419.0,0.18401943]
[1733863509310,0.051833,96419.0,96418.0,0.18569382]
[1733863509705,0.051833,96419.0,96418.0,0.00167439]
[1733863510708,0.051833,96419.0,96418.0,0.00011876]
[1733863510910,0.20686281,96419.0,96418.0,0.00011876]
[1733863511104,0.20686281,96419.0,96404.0,0.3608]
[1733863511105,0.051841,96405.0,96404.0,0.3608]
[1733863511416,0.051848,96392.0,96391.0,0.00072]
[1733863511713,0.051852,96385.0,96380.0,0.18401943]
[1733863512010,0.051852,96385.0,96379.0,0.23587343]
[1733863512011,7.795e-05,96384.0,96379.0,0.23587343]
[1733863512208,7.795e-05,96384.0,96380.0,0.051854]
[1733863512403,7.795e-05,96384.0,96376.0,0.18401943]
[1733863512601,7.795e-05,96384.0,96382.0,0.051853]
[1733863513314,7.795e-05,96384.0,96383.0,0.3608]
[1733863513706,7.795e-05,96384.0,96383.0,0.70618512]
[1733863514006,0.1240383,96411.0,96383.0,0.70618512]
[1733863514007,0.09304408,96410.0,96408.0,0.051839]
[1733863514215,0.09304408,96412.0,96408.0,0.051839]
[1733863514417,0.09304408,96413.0,96408.0,0.051839]
[1733863514601,0.18563666,96428.0,96396.0,0.3608]
[1733863514602,0.09304408,96414.0,96412.0,0.051837]
[1733863514806,0.051836,96414.0,96412.0,0.051837]
[1733863515112,0.051836,96414.0,96404.0,0.3608]
[1733863515113,4.081e-05,96413.0,96406.0,0.05184]
[1733863515415,0.051839,96409.0,96406.0,0.05184]
[1733863515611,0.051839,96409.0,96408.0,0.001]
[1733863517703,0.051839,96409.0,96406.0,0.001]
[1733863517910,0.051839,96409.0,96408.0,0.3608]
[1733863518309,0.412639,96409.0,96396.0,0.3608]
[1733863518617,0.412639,96409.0,96408.0,0.001]
[1733863519009,0.051845,96397.0,96396.0,0.3608]
[1733863519419,0.051845,96397.0,96396.0,0.32936]
[1733863519717,0.051845,96397.0,96396.0,0.33136]
[1733863521012,0.052845,96397.0,96396.0,0.32936]
[1733863521819,0.053845,96397.0,96396.0,0.32936]
[1733863522816,0.053845,96397.0,96375.0,0.051856]
[1733863522817,0.414645,96397.0,96378.0,0.051855]
[1733863523113,0.051853,96382.0,96381.0,0.3608]
[1733863524516,0.051853,96382.0,96381.0,0.3648]
[1733863525020,0.051853,96382.0,96381.0,0.3658]
[1733863525710,0.10311397,96388.0,96381.0,0.3658]
[1733863525911,0.0944491,96402.0,96381.0,0.3658]
[1733863526109,0.00155665,96402.0,96401.0,0.773443]
[1733863527308,0.00755665,96402.0,96401.0,0.774443]
[1733863527514,0.05939865,96402.0,96401.0,0.7226]
[1733863527717,0.05939865,96402.0,96401.0,0.001]
[1733863527913,0.06239865,96402.0,96401.0,0.001]
[1733863528216,0.051846,96395.0,96394.0,0.051846]
[1733863530514,0.052846,96395.0,96394.0,0.051846]
[1733863530912,0.051846,96395.0,96394.0,0.051846]
[1733863531217,0.052846,96395.0,96394.0,0.051846]
[1733863533221,0.051846,96395.0,96394.0,0.052846]
[1733863535121,0.051846,96395.0,96391.0,0.3608]
[1733863535317,0.051847,96394.0,96393.0,0.051847]
[1733863536024,0.001,96395.0,96391.0,0.3608]
[1733863536215,0.052846,96395.0,96394.0,0.051847]
[1733863536819,0.051846,96395.0,96394.0,0.052847]
[1733863537825,0.051848,96392.0,96391.0,0.3608]
[1733863538032,0.051853,96383.0,96382.0,0.3608]
[1733863539413,0.051853,96383.0,96382.0,0.3618]
[1733863540424,0.41269381,96383.0,96382.0,0.001]
[1733863540821,0.42172474,96383.0,96382.0,0.004]
[1733863541524,0.54576304,96383.0,96382.0,0.004]
[1733863542038,0.42172474,96383.0,96382.0,0.004]
[1733863542922,0.54576304,96383.0,96382.0,0.004]
[1733863543126,0.42172474,96383.0,96382.0,0.004]
[1733863543326,0.47216394,96383.0,96382.0,0.004]
[1733863543519,0.42172474,96383.0,96382.0,0.004]
[1733863543924,0.47216431,96383.0,96382.0,0.004]
[1733863544134,0.42172474,96383.0,96382.0,0.004]
[1733863544442,0.051865,96360.0,96338.0,0.18401943]
[1733863544628,0.051877,96338.0,96337.0,0.18401943]
[1733863545127,0.051877,96338.0,96328.0,0.36152]
[1733863545128,0.10311397,96348.0,96328.0,0.3608]
[1733863545333,0.05188,96333.0,96328.0,0.3608]
[1733863545528,0.10311397,96340.0,96328.0,0.3608]
[1733863545529,0.0001215,96332.0,96328.0,0.3608]
[1733863545931,0.051882,96329.0,96328.0,0.3608]
[1733863546532,0.0001215,96332.0,96328.0,0.3608]
[1733863546730,0.0001215,96332.0,96330.0,0.051881]
[1733863546935,0.051882,96329.0,96328.0,0.3608]
[1733863547426,0.047882,96329.0,96328.0,0.3658]
[1733863548035,0.047882,96329.0,96328.0,0.3628]
[1733863548224,0.047882,96329.0,96328.0,0.002]
[1733863549428,0.048882,96329.0,96328.0,0.002]
[1733863551432,0.002,96329.0,96328.0,0.053882]
[1733863551631,0.0001215,96332.0,96328.0,0.002]
[1733863551829,0.0001215,96332.0,96331.0,0.051881]
[1733863552038,0.051881,96330.0,96329.0,0.0615]
[1733863553136,0.052881,96330.0,96329.0,0.0615]
[1733863554630,0.053881,96330.0,96329.0,0.0635]
[1733863556940,0.053881,96330.0,96329.0,0.002]
[1733863557937,0.053881,96330.0,96326.0,0.3608]
[1733863557938,0.051883,96327.0,96326.0,0.3608]
[1733863558538,0.051883,96327.0,96318.0,0.36152]
[1733863558539,0.051887,96320.0,96318.0,0.00072]
[1733863558729,0.051887,96320.0,96312.0,0.05189]
[1733863558936,0.10311397,96328.0,96307.0,0.36156]
[1733863559235,0.10511397,96330.0,96307.0,0.3608]
[1733863559236,0.051891,96312.0,96307.0,0.3608]
[1733863559438,0.10311397,96317.0,96307.0,0.3608]
[1733863559638,0.051891,96312.0,96307.0,0.412693]
[1733863559952,0.10311397,96317.0,96307.0,0.412693]
[1733863560139,0.10311397,96317.0,96316.0,0.3608]
[1733863560342,0.051888,96318.0,96316.0,0.3608]
[1733863561242,0.0639,96321.0,96307.0,0.36152]
[1733863561243,0.051891,96311.0,96307.0,0.36352]
[1733863561447,0.051892,96310.0,96307.0,0.3628]
[1733863561739,0.10511397,96317.0,96311.0,0.051891]
[1733863561939,0.10411397,96317.0,96311.0,0.051891]
[1733863562140,0.15600197,96317.0,96316.0,0.002]
[1733863562345,0.052888,96317.0,96316.0,0.002]
[1733863562536,0.051888,96317.0,96316.0,0.002]
[1733863562741,0.001,96318.0,96306.0,0.412694]
[1733863562742,0.051889,96316.0,96306.0,0.412694]
[1733863562941,0.10311397,96316.0,96311.0,0.002]
[1733863563141,0.05189,96314.0,96311.0,0.002]
[1733863564142,0.05189,96313.0,96311.0,0.002]
[1733863564342,0.10311397,96316.0,96306.0,0.36156]
[1733863564343,0.051893,96307.0,96306.0,0.36156]
[1733863564538,0.051893,96307.0,96306.0,0.3608]
[1733863565147,0.051895,96305.0,96304.0,0.00012458]
[1733863565943,0.00918673,96307.0,96304.0,0.00012458]
[1733863566244,0.001,96314.0,96313.0,0.05189]
[1733863566547,0.10311397,96323.0,96321.0,0.051886]
[1733863566741,0.051883,96327.0,96323.0,0.051885]
[1733863566956,0.10311397,96331.0,96313.0,0.3608]
[1733863567241,0.051888,96317.0,96313.0,0.3608]
[1733863567636,0.051889,96316.0,96313.0,0.3608]
[1733863567841,0.05189,96314.0,96313.0,0.3608]
[1733863568037,0.10311397,96323.0,96313.0,0.41269]
[1733863568453,0.051889,96316.0,96313.0,0.41369]
[1733863569148,0.051889,96315.0,96313.0,0.41269]
[1733863569344,0.051889,96315.0,96313.0,0.3618]
[1733863570544,0.051889,96315.0,96313.0,0.001]
[1733863570746,0.051893,96307.0,96306.0,0.0661]
[1733863572539,0.22931397,96316.0,96306.0,0.0661]
[1733863572540,0.16531397,96316.0,96313.0,0.05189]
[1733863572839,0.002,96315.0,96312.0,0.051891]
[1733863573044,0.002,96315.0,96306.0,0.0661]
[1733863573554,0.002,96315.0,96314.0,0.41269]
[1733863574257,0.0629,96327.0,96314.0,0.60634829]
[1733863574560,0.051886,96321.0,96320.0,0.18426776]
[1733863574748,0.051886,96321.0,96318.0,0.18426776]
[1733863575056,0.051886,96321.0,96320.0,0.051886]
[1733863575251,0.051886,96321.0,96320.0,0.23615376]
[1733863575451,0.07213851,96327.0,96315.0,0.24569035]
[1733863575452,0.0629,96327.0,96319.0,0.18426776]
[1733863575652,0.0629,96327.0,96314.0,0.3636]
[1733863575653,0.051885,96323.0,96322.0,0.54510618]
[1733863575842,0.051885,96323.0,96322.0,0.3608]
[1733863577949,0.056885,96323.0,96322.0,0.3608]
[1733863578956,0.057885,96323.0,96322.0,0.3608]
[1733863579154,0.062885,96323.0,96322.0,0.3608]
[1733863579362,0.062885,96323.0,96304.0,0.36092458]
[1733863579363,0.051885,96322.0,96309.0,0.18430618]
[1733863579656,0.051892,96309.0,96307.0,0.18430618]
[1733863579859,0.051894,96306.0,96305.0,0.18430618]
[1733863580053,0.051895,96305.0,96304.0,0.00012458]
[1733863581856,0.051895,96305.0,96304.0,0.00112458]
[1733863582650,0.05199692,96305.0,96304.0,0.00112458]
[1733863583951,0.14519399,96305.0,96304.0,0.00112458]
[1733863585556,0.00010192,96305.0,96304.0,0.41381958]
[1733863586662,0.00010192,96305.0,96304.0,0.59826436]
[1733863587349,0.00010192,96305.0,96304.0,0.41381958]
[1733863589059,0.09319882,96338.0,96307.0,0.051893]
[1733863589260,0.09319882,96338.0,96332.0,0.18417873]
[1733863589261,0.051877,96338.0,96332.0,0.18417873]
[1733863589453,0.3608,96333.0,96329.0,0.18417873]
[1733863589656,0.051886,96323.0,96322.0,0.051885]
[1733863589857,0.25587882,96332.0,96331.0,0.05188]
[1733863590167,0.16268,96332.0,96331.0,0.05188]
[1733863591063,0.16668,96332.0,96331.0,0.05188]
[1733863591651,0.16968,96332.0,96331.0,0.05188]
[1733863592055,0.051881,96330.0,96327.0,0.051882]
[1733863592261,0.22401055,96332.0,96322.0,0.18417873]
[1733863592562,0.22401055,96332.0,96329.0,0.412682]
[1733863592563,0.09315249,96331.0,96329.0,0.412682]
[1733863592767,0.011,96332.0,96331.0,0.05188]
[1733863593661,0.007,96332.0,96331.0,0.29745164]
[1733863593867,0.007,96332.0,96331.0,0.35856537]
[1733863594164,0.007,96332.0,96331.0,0.29745164]
[1733863594357,0.0015577,96342.0,96330.0,0.35699106]
[1733863594556,0.0015577,96342.0,96341.0,0.412675]
[1733863595063,0.02115069,96360.0,96358.0,0.051866]
[1733863595262,0.02115069,96360.0,96358.0,0.412666]
[1733863595765,0.00937609,96364.0,96363.0,0.051863]
[1733863595966,0.00155696,96375.0,96359.0,0.0565]
[1733863595967,0.051861,96368.0,96359.0,0.0565]
[1733863596161,0.051861,96368.0,96367.0,0.3608]
[1733863596976,0.00932858,96369.0,96358.0,0.3608]
[1733863597164,0.051859,96372.0,96358.0,0.3608]
[1733863597358,0.051862,96367.0,96365.0,0.051862]
[1733863597555,0.051862,96367.0,96366.0,0.412662]
[1733863597960,0.06816751,96373.0,96366.0,0.3608]
[1733863598265,0.00155696,96375.0,96374.0,0.051857]
[1733863599868,0.01055696,96375.0,96374.0,0.051857]
[1733863600563,0.06941396,96375.0,96374.0,0.412657]
[1733863600766,0.06941396,96375.0,96364.0,0.3608]
[1733863600767,0.37835696,96375.0,96355.0,0.3608]
[1733863600967,0.051867,96356.0,96355.0,0.412668]
[1733863601562,0.37835696,96375.0,96366.0,0.051861]
[1733863601563,0.051861,96367.0,96366.0,0.051861]
[1733863602058,0.37835696,96375.0,96363.0,0.3608]
[1733863602059,0.01055696,96375.0,96363.0,0.3608]
[1733863602365,0.00155696,96375.0,96374.0,0.051857]
[1733863602767,0.00355696,96375.0,96374.0,0.051857]
[1733863603761,0.00155696,96375.0,96374.0,0.051857]
[1733863604180,0.00155696,96375.0,96374.0,0.051852]
[1733863604484,0.051843,96392.0,96391.0,0.051841]
[1733863604669,0.051843,96392.0,96391.0,0.412641]
[1733863604972,0.106836,96405.0,96392.0,0.051842]
[1733863605274,0.051836,96405.0,96404.0,0.412636]
[1733863605674,0.00155649,96408.0,96404.0,0.3608]
[1733863605675,0.00945936,96406.0,96404.0,0.3608]
[1733863605873,0.00155649,96408.0,96407.0,0.051834]